Workbook

Sheet 拟聘用人员公示
A1: 张家川县2024年“特岗教师”拟聘用人员公示
A2: 序号 | B2: 姓 名 | C2: 性别 | D2: 学历 | E2: 笔试准考证号 | F2: 岗位学段 | G2: 岗位学科 | H2: 笔试成绩 | I2: 笔试折算得分 | J2: 面试成绩 | K2: 面试折算得分 | L2: 总成绩 | M2: 体检结果 | N2: 备注
A3: 1 | B3: 马佳 | C3: 女 | D3: 本科 | F3: 初中学段 | G3: 物理 | M3: 合格 | N3: 农硕签约
A4: 2 | B4: 马婷婷 | C4: 女 | D4: 本科 | F4: 初中学段 | G4: 物理 | M4: 合格 | N4: 农硕签约
A5: 3 | B5: 陈红丽 | C5: 女 | D5: 本科 | E5: 201051401413 | F5: 初中学段 | G5: 语文 | H5: 146.6 | I5: =H5/2*0.7 -> 51.310 | J5: 94.040 | K5: =J5*0.3 -> 28.212 | L5: =I5+K5 -> 79.522 | M5: 合格
A6: 4 | B6: 马好娃 | C6: 女 | D6: 本科 | E6: 201051202703 | F6: 初中学段 | G6: 语文 | H6: 144.7 | I6: =H6/2*0.7 -> 50.645 | J6: 93.280 | K6: =J6*0.3 -> 27.984 | L6: =I6+K6 -> 78.629 | M6: 合格
A7: 5 | B7: 马利霞 | C7: 女 | D7: 本科 | E7: 201051201327 | F7: 初中学段 | G7: 语文 | H7: 140.2 | I7: =H7/2*0.7 -> 49.070 | J7: 93.560 | K7: =J7*0.3 -> 28.068 | L7: =I7+K7 -> 77.138 | M7: 合格
A8: 6 | B8: 安小龙 | C8: 男 | D8: 本科 | E8: 202051102109 | F8: 初中学段 | G8: 数学 | H8: 140.5 | I8: =H8/2*0.7 -> 49.175 | J8: 91.880 | K8: =J8*0.3 -> 27.564 | L8: =I8+K8 -> 76.739 | M8: 合格
A9: 7 | B9: 马雪 | C9: 女 | D9: 本科 | E9: 202051303721 | F9: 初中学段 | G9: 数学 | H9: 130.5 | I9: =H9/2*0.7 -> 45.675 | J9: 94.220 | K9: =J9*0.3 -> 28.266 | L9: =I9+K9 -> 73.941 | M9: 合格
A10: 8 | B10: 王亚利 | C10: 女 | D10: 本科 | E10: 201051000427 | F10: 初中学段 | G10: 英语 | H10: 121.9 | I10: =H10/2*0.7 -> 42.665 | J10: 93.880 | K10: =J10*0.3 -> 28.164 | L10: =I10+K10 -> 70.829 | M10: 合格
A11: 9 | B11: 黄建军 | C11: 男 | D11: 本科 | E11: 202051102604 | F11: 初中学段 | G11: 物理 | H11: 140.7 | I11: =H11/2*0.7 -> 49.245 | J11: 92.400 | K11: =J11*0.3 -> 27.720 | L11: =I11+K11 -> 76.965 | M11: 合格
A12: 10 | B12: 吴杰 | C12: 男 | D12: 本科 | E12: 201051001628 | F12: 初中学段 | G12: 历史 | H12: 154 | I12: =H12/2*0.7 -> 53.900 | J12: 93.640 | K12: =J12*0.3 -> 28.092 | L12: =I12+K12 -> 81.992 | M12: 合格
A13: 11 | B13: 马小刚 | C13: 男 | D13: 本科 | E13: 201051402312 | F13: 初中学段 | G13: 历史 | H13: 150.8 | I13: =H13/2*0.7 -> 52.780 | J13: 92.560 | K13: =J13*0.3 -> 27.768 | L13: =I13+K13 -> 80.548 | M13: 合格
A14: 12 | B14: 王富龙 | C14: 男 | D14: 本科 | E14: 201051400217 | F14: 初中学段 | G14: 地理 | H14: 141.5 | I14: =H14/2*0.7 -> 49.525 | J14: 93.280 | K14: =J14*0.3 -> 27.984 | L14: =I14+K14 -> 77.509 | M14: 合格
A15: 13 | B15: 张雷 | C15: 男 | D15: 本科 | E15: 202051101920 | F15: 初中学段 | G15: 生物 | H15: 114.5 | I15: =H15/2*0.7 -> 40.075 | J15: 93.260 | K15: =J15*0.3 -> 27.978 | L15: =I15+K15 -> 68.053 | M15: 合格
A16: 14 | B16: 张宝鸿 | C16: 男 | D16: 本科 | E16: 201051001608 | F16: 初中学段 | G16: 政治 | H16: 138.2 | I16: =H16/2*0.7 -> 48.370 | J16: 93.260 | K16: =J16*0.3 -> 27.978 | L16: =I16+K16 -> 76.348 | M16: 合格
A17: 15 | B17: 马晶莹 | C17: 女 | D17: 本科 | E17: 201051200726 | F17: 初中学段 | G17: 政治 | H17: 134.5 | I17: =H17/2*0.7 -> 47.075 | J17: 94.360 | K17: =J17*0.3 -> 28.308 | L17: =I17+K17 -> 75.383 | M17: 合格
A18: 16 | B18: 马菁 | C18: 女 | D18: 专科 | E18: 201051201723 | F18: 小学学段 | G18: 语文 | H18: 145.3 | I18: =H18/2*0.7 -> 50.855 | J18: 94.100 | K18: =J18*0.3 -> 28.230 | L18: =I18+K18 -> 79.085 | M18: 合格
A19: 17 | B19: 袁芳 | C19: 女 | D19: 本科 | E19: 201051402927 | F19: 小学学段 | G19: 语文 | H19: 145 | I19: =H19/2*0.7 -> 50.750 | J19: 93.460 | K19: =J19*0.3 -> 28.038 | L19: =I19+K19 -> 78.788 | M19: 合格
A20: 18 | B20: 毛玲玲 | C20: 女 | D20: 本科 | E20: 201051400506 | F20: 小学学段 | G20: 语文 | H20: 144.1 | I20: =H20/2*0.7 -> 50.435 | J20: 93.780 | K20: =J20*0.3 -> 28.134 | L20: =I20+K20 -> 78.569 | M20: 合格
A21: 19 | B21: 李荣海 | C21: 男 | D21: 本科 | E21: 201051202415 | F21: 小学学段 | G21: 语文 | H21: 142.3 | I21: =H21/2*0.7 -> 49.805 | J21: 94.440 | K21: =J21*0.3 -> 28.332 | L21: =I21+K21 -> 78.137 | M21: 合格
A22: 20 | B22: 苏继强 | C22: 男 | D22: 本科 | E22: 202051103418 | F22: 小学学段 | G22: 数学 | H22: 149.6 | I22: =H22/2*0.7 -> 52.360 | J22: 92.280 | K22: =J22*0.3 -> 27.684 | L22: =I22+K22 -> 80.044 | M22: 合格
A23: 21 | B23: 李鹏 | C23: 男 | D23: 本科 | E23: 202051101729 | F23: 小学学段 | G23: 数学 | H23: 144.1 | I23: =H23/2*0.7 -> 50.435 | J23: 92.780 | K23: =J23*0.3 -> 27.834 | L23: =I23+K23 -> 78.269 | M23: 合格
A24: 22 | B24: 李旭东 | C24: 男 | D24: 本科 | E24: 202051102505 | F24: 小学学段 | G24: 数学 | H24: 141.7 | I24: =H24/2*0.7 -> 49.595 | J24: 93.780 | K24: =J24*0.3 -> 28.134 | L24: =I24+K24 -> 77.729 | M24: 合格
A25: 23 | B25: 海坤 | C25: 男 | D25: 本科 | E25: 202051102610 | F25: 小学学段 | G25: 数学 | H25: 137.6 | I25: =H25/2*0.7 -> 48.160 | J25: 94.540 | K25: =J25*0.3 -> 28.362 | L25: =I25+K25 -> 76.522 | M25: 合格
A26: 24 | B26: 马丽丽 | C26: 女 | D26: 本科 | E26: 202051303210 | F26: 小学学段 | G26: 数学 | H26: 136.8 | I26: =H26/2*0.7 -> 47.880 | J26: 93.380 | K26: =J26*0.3 -> 28.014 | L26: =I26+K26 -> 75.894 | M26: 合格
A27: 25 | B27: 马兵兵 | C27: 男 | D27: 本科 | E27: 202051103027 | F27: 小学学段 | G27: 数学 | H27: 136.4 | I27: =H27/2*0.7 -> 47.740 | J27: 94.720 | K27: =J27*0.3 -> 28.416 | L27: =I27+K27 -> 76.156 | M27: 合格
A28: 26 | B28: 杨芳梅 | C28: 女 | D28: 本科 | E28: 201051202510 | F28: 小学学段 | G28: 英语 | H28: 150 | I28: =H28/2*0.7 -> 52.500 | J28: 94.300 | K28: =J28*0.3 -> 28.290 | L28: =I28+K28 -> 80.790 | M28: 合格
A29: 27 | B29: 毕芳兰 | C29: 女 | D29: 本科 | E29: 201051402607 | F29: 小学学段 | G29: 英语 | H29: 139.6 | I29: =H29/2*0.7 -> 48.860 | J29: 94.380 | K29: =J29*0.3 -> 28.314 | L29: =I29+K29 -> 77.174 | M29: 合格
A30: 28 | B30: 沙玉龙 | C30: 男 | D30: 本科 | E30: 201051200506 | F30: 小学学段 | G30: 英语 | H30: 135.7 | I30: =H30/2*0.7 -> 47.495 | J30: 92.740 | K30: =J30*0.3 -> 27.822 | L30: =I30+K30 -> 75.317 | M30: 合格
A31: 29 | B31: 汪旦旦 | C31: 女 | D31: 专科 | E31: 201051201615 | F31: 小学学段 | G31: 英语 | H31: 134.5 | I31: =H31/2*0.7 -> 47.075 | J31: 93.400 | K31: =J31*0.3 -> 28.020 | L31: =I31+K31 -> 75.095 | M31: 合格
A32: 30 | B32: 邵亚亚 | C32: 女 | D32: 专科 | E32: 201051402703 | F32: 小学学段 | G32: 政治 | H32: 139.7 | I32: =H32/2*0.7 -> 48.895 | J32: 93.100 | K32: =J32*0.3 -> 27.930 | L32: =I32+K32 -> 76.825 | M32: 合格
A33: 31 | B33: 李媛 | C33: 女 | D33: 本科 | E33: 203051300901 | F33: 小学学段 | G33: 音乐 | H33: 149.3 | I33: =H33/2*0.7 -> 52.255 | J33: 93.140 | K33: =J33*0.3 -> 27.942 | L33: =I33+K33 -> 80.197 | M33: 合格
A34: 32 | B34: 马易涵 | C34: 女 | D34: 本科 | E34: 205051301830 | F34: 小学学段 | G34: 美术 | H34: 146.3 | I34: =H34/2*0.7 -> 51.205 | J34: 93.940 | K34: =J34*0.3 -> 28.182 | L34: =I34+K34 -> 79.387 | M34: 合格
A35: 33 | B35: 张龙 | C35: 男 | D35: 专科 | E35: 204051301126 | F35: 小学学段 | G35: 体育 | H35: 132.1 | I35: =H35/2*0.7 -> 46.235 | J35: 94.440 | K35: =J35*0.3 -> 28.332 | L35: =I35+K35 -> 74.567 | M35: 合格
A36: 34 | B36: 马海地车 | C36: 女 | D36: 本科 | E36: 201051402002 | F36: 小学学段 | G36: 小学全科 | H36: 140.2 | I36: =H36/2*0.7 -> 49.070 | J36: 92.040 | K36: =J36*0.3 -> 27.612 | L36: =I36+K36 -> 76.682 | M36: 合格
A37: 35 | B37: 李雯 | C37: 女 | D37: 本科 | E37: 201051202201 | F37: 小学学段 | G37: 小学全科 | H37: 134.9 | I37: =H37/2*0.7 -> 47.215 | J37: 93.880 | K37: =J37*0.3 -> 28.164 | L37: =I37+K37 -> 75.379 | M37: 合格
A38: 36 | B38: 马缘 | C38: 女 | D38: 本科 | E38: 201051200713 | F38: 小学学段 | G38: 小学全科 | H38: 134.7 | I38: =H38/2*0.7 -> 47.145 | J38: 92.820 | K38: =J38*0.3 -> 27.846 | L38: =I38+K38 -> 74.991 | M38: 合格
A39: 37 | B39: 马霞 | C39: 女 | D39: 本科 | E39: 201051201406 | F39: 小学学段 | G39: 小学全科 | H39: 132.6 | I39: =H39/2*0.7 -> 46.410 | J39: 93.380 | K39: =J39*0.3 -> 28.014 | L39: =I39+K39 -> 74.424 | M39: 合格
A40: 38 | B40: 苏忻 | C40: 女 | D40: 专科 | E40: 201051201306 | F40: 小学学段 | G40: 小学全科 | H40: 130.7 | I40: =H40/2*0.7 -> 45.745 | J40: 93.300 | K40: =J40*0.3 -> 27.990 | L40: =I40+K40 -> 73.735 | M40: 合格
A41: 39 | B41: 马鑫 | C41: 男 | D41: 本科 | E41: 202051303501 | F41: 小学学段 | G41: 小学全科 | H41: 130.6 | I41: =H41/2*0.7 -> 45.710 | J41: 93.880 | K41: =J41*0.3 -> 28.164 | L41: =I41+K41 -> 73.874 | M41: 合格
A42: 40 | B42: 马彪 | C42: 男 | D42: 本科 | E42: 202051303203 | F42: 小学学段 | G42: 科学 | H42: 131.2 | I42: =H42/2*0.7 -> 45.920 | J42: 93.200 | K42: =J42*0.3 -> 27.960 | L42: =I42+K42 -> 73.880 | M42: 合格

Sheet Sheet3
